bitfinex-derivatives/quotes_BTCF0:USTF0_20241218
["timestamp","ask_amount","ask_price","bid_price","bid_amount"]
[1734499304957,0.00059138,103680.0,103670.0,0.048232]
[1734499307769,9.138e-05,103680.0,103670.0,0.048232]
[1734499308161,9.138e-05,103680.0,103670.0,0.11970198]
[1734499308358,9.138e-05,103680.0,103670.0,0.15140198]
[1734499308755,9.138e-05,103680.0,103670.0,0.51220198]
[1734499309766,0.40901,103720.0,103700.0,0.048218]
[1734499309968,0.48047998,103720.0,103700.0,0.048218]
[1734499310472,0.48047998,103720.0,103700.0,0.114518]
[1734499310773,0.48060184,103720.0,103700.0,0.114518]
[1734499311269,0.01907747,103710.0,103700.0,0.114518]
[1734499313167,0.01907747,103710.0,103700.0,0.475318]
[1734499313664,0.36092186,103720.0,103710.0,0.048213]
[1734499313862,0.00012186,103720.0,103710.0,0.048213]
[1734499314167,0.36092186,103720.0,103710.0,0.048213]
[1734499315564,0.38008112,103720.0,103710.0,0.048213]
[1734499316965,0.01928112,103720.0,103710.0,0.048213]
[1734499320964,0.0907511,103720.0,103710.0,0.048213]
[1734499322969,0.01928112,103720.0,103710.0,0.048213]
[1734499323269,0.00012186,103720.0,103710.0,0.048213]
[1734499323461,0.00012186,103720.0,103710.0,0.51190334]
[1734499324774,0.00062186,103720.0,103710.0,0.51190334]
[1734499325870,0.00062186,103720.0,103710.0,0.44043336]
[1734499326070,0.00062186,103720.0,103710.0,0.51190334]
[1734499326269,0.00062186,103720.0,103710.0,0.88337332]
[1734499326469,0.00062186,103720.0,103710.0,0.81190334]
[1734499327364,0.00062186,103720.0,103710.0,0.88337332]
[1734499329475,0.00062186,103720.0,103710.0,0.58337332]
[1734499330977,0.00144679,103740.0,103730.0,0.048204]
[1734499331169,0.00144679,103740.0,103730.0,0.48047398]
[1734499331877,0.00144679,103740.0,103730.0,0.409004]
[1734499332981,0.12111577,103740.0,103730.0,0.048204]
[1734499333282,0.00144679,103740.0,103730.0,0.048204]
[1734499333579,0.36224679,103740.0,103730.0,0.048204]
[1734499336180,0.36224679,103740.0,103730.0,0.409004]
[1734499336181,0.00144679,103740.0,103730.0,0.409004]
[1734499336777,0.00144679,103740.0,103730.0,0.48047398]
[1734499337084,0.00012175,103750.0,103730.0,0.48047398]
[1734499337268,0.00012175,103750.0,103740.0,0.57326898]
[1734499337980,0.00012175,103750.0,103740.0,0.58230675]
[1734499338497,0.00012175,103750.0,103740.0,0.57326898]
[1734499339688,0.01,103760.0,103750.0,0.048195]
[1734499339993,0.08146998,103760.0,103750.0,0.048195]
[1734499340172,0.49045998,103760.0,103750.0,0.048195]
[1734499340482,0.05819,103760.0,103750.0,0.048195]
[1734499340692,0.01,103760.0,103750.0,0.048195]
[1734499341576,0.01,103760.0,103750.0,0.48046498]
[1734499341789,0.01,103760.0,103750.0,0.48055375]
[1734499345799,0.01,103760.0,103750.0,0.40908377]
[1734499346494,0.01,103760.0,103750.0,0.04828377]
[1734499347421,0.01,103760.0,103750.0,0.48055375]
[1734499349499,0.01,103760.0,103750.0,0.78055375]
[1734499349797,0.0105,103760.0,103750.0,0.48055375]
[1734499349989,7.749e-05,103770.0,103750.0,0.78959152]
[1734499350188,7.749e-05,103770.0,103760.0,0.57135998]
[1734499352595,0.0009,103780.0,103770.0,0.048185]
[1734499352806,0.0009,103780.0,103770.0,0.48045498]
[1734499353894,0.1,103800.0,103790.0,0.11964598]
[1734499354085,0.1,103800.0,103790.0,0.84124598]
[1734499355292,0.1,103800.0,103790.0,0.769776]
[1734499356691,0.1,103800.0,103790.0,0.87424598]
[1734499357090,0.1,103800.0,103790.0,0.90464598]
[1734499358504,0.1,103800.0,103790.0,0.833176]
[1734499358696,0.1,103800.0,103790.0,0.111576]
[1734499358900,0.1,103800.0,103790.0,0.472376]
[1734499359102,0.1,103800.0,103790.0,0.54384598]
[1734499359396,0.1,103800.0,103790.0,0.472376]
[1734499359596,0.1,103800.0,103790.0,0.54384598]
[1734499366989,0.1,103800.0,103790.0,0.61531596]
[1734499367188,0.1,103800.0,103790.0,0.54384598]
[1734499367404,0.04583858,103800.0,103790.0,0.54384598]
[1734499369803,0.04633858,103800.0,103790.0,0.54384598]
[1734499370707,0.04633858,103800.0,103790.0,0.56273856]
[1734499372597,0.04633858,103800.0,103790.0,0.63420854]
[1734499373001,0.04633858,103800.0,103790.0,0.56273856]
[1734499373305,0.04633858,103800.0,103790.0,0.63420854]
[1734499373306,0.04746336,103800.0,103790.0,0.63420854]
[1734499374199,0.08600413,103830.0,103800.0,0.048171]
[1734499374509,0.3622,103840.0,103830.0,0.048158]
[1734499374702,0.3622,103840.0,103830.0,0.11962798]
[1734499375303,0.3622,103840.0,103830.0,0.11970022]
[1734499375510,0.3622,103840.0,103830.0,0.04823024]
[1734499378611,0.3622,103840.0,103830.0,0.11970022]
[1734499378809,0.58251858,103850.0,103830.0,0.07154222]
[1734499379017,0.79134067,103880.0,103830.0,0.1430122]
[1734499379211,0.60202895,103900.0,103830.0,0.1430122]
[1734499379410,0.74205663,103950.0,103840.0,1.07736]
[1734499379614,0.35576,104110.0,103990.0,0.01]
[1734499379615,0.31605112,104030.0,103990.0,0.01]
[1734499379828,0.408849,104070.0,104020.0,0.76967]
[1734499380019,0.048049,104070.0,104050.0,0.3608]
[1734499380323,0.048049,104070.0,104050.0,1.80542043]
[1734499380324,0.38042745,104060.0,104050.0,1.80542043]
[1734499380609,0.01962745,104060.0,104050.0,1.80542043]
[1734499380811,0.01958745,104060.0,104050.0,2.23769041]
[1734499381112,0.01958745,104060.0,104050.0,2.16622043]
[1734499381310,0.01958745,104060.0,104050.0,2.53104221]
[1734499381509,0.01958745,104060.0,104050.0,1.3062066]
[1734499381922,7.936e-05,104060.0,104050.0,1.42573258]
[1734499382213,7.936e-05,104060.0,104050.0,1.36222884]
[1734499382409,3.6e-07,104060.0,104050.0,1.36222884]
[1734499382609,3.6e-07,104060.0,104050.0,1.37622178]
[1734499382915,3.6e-07,104060.0,104050.0,1.38622178]
[1734499383720,3.6e-07,104060.0,104050.0,1.37216498]
[1734499383923,3.6e-07,104060.0,104050.0,1.47851143]
[1734499384221,0.01111,104090.0,104050.0,1.46851143]
[1734499384410,0.31111,104090.0,104070.0,0.3608]
[1734499384616,0.31111,104090.0,104050.0,1.30571365]
[1734499384617,0.51519245,104080.0,104050.0,1.30571365]
[1734499384910,0.3613,104060.0,104030.0,0.00870037]
[1734499385221,0.7216,104040.0,104010.0,0.05677204]
[1734499385403,0.3608,104020.0,104010.0,0.048073]
[1734499385809,0.3608,104020.0,104010.0,0.16217125]
[1734499386207,0.3608,104020.0,104010.0,0.0481888]
[1734499386517,0.36092281,104030.0,104010.0,0.11409825]
[1734499386715,0.36092281,104030.0,104020.0,0.16205245]
[1734499388111,0.00012281,104030.0,104020.0,0.52285245]
[1734499388306,0.00012281,104030.0,104020.0,0.16205245]
[1734499388613,0.00012281,104030.0,104020.0,0.04807]
[1734499389118,0.66092281,104030.0,104010.0,0.0001158]
[1734499389420,0.66092281,104030.0,104010.0,0.0481898]
[1734499389421,0.3608,104020.0,104010.0,0.0481898]
[1734499391112,0.36092281,104030.0,104010.0,0.11409825]
[1734499391314,0.36092281,104030.0,104020.0,0.04807]
[1734499391514,0.00012281,104030.0,104020.0,0.04807]
[1734499391709,0.36092281,104030.0,104020.0,0.04807]
[1734499391913,0.00012281,104030.0,104020.0,0.04807]
[1734499392123,0.36092281,104030.0,104020.0,0.04807]
[1734499393214,0.00012281,104030.0,104020.0,0.40887]
[1734499393419,0.00012281,104030.0,104020.0,0.52285245]
[1734499395509,8.1e-07,104030.0,104020.0,0.52285245]
[1734499395716,0.0005,104060.0,104020.0,0.82285245]
[1734499395922,0.3613,104060.0,104050.0,0.16203845]
[1734499396319,0.3613,104060.0,104050.0,0.048056]
[1734499398719,0.38099001,104060.0,104050.0,0.048056]
[1734499400013,0.38099001,104060.0,104050.0,0.05105824]
[1734499400725,0.02019001,104060.0,104050.0,0.048056]
[1734499401121,0.38099001,104060.0,104050.0,0.05105824]
[1734499401317,1e-06,104060.0,104050.0,0.52591576]
[1734499401519,1e-06,104060.0,104050.0,0.16511576]
[1734499401821,0.360801,104060.0,104050.0,0.05113331]
[1734499402022,0.360801,104060.0,104050.0,7.507e-05]
[1734499402023,0.47478345,104060.0,104050.0,7.507e-05]
[1734499402224,0.3608,104050.0,103990.0,0.00480359]
[1734499402528,0.3608,104020.0,104000.0,0.11398245]
[1734499402722,0.3608,104020.0,104010.0,0.048074]
[1734499402923,0.3608,104020.0,104010.0,0.05287759]
[1734499403222,0.3608,104020.0,104010.0,0.05298948]
[1734499403428,0.3608,104030.0,104020.0,0.048065]
[1734499403627,0.15899859,104030.0,104020.0,0.05286979]
[1734499404018,0.15899859,104030.0,104020.0,0.05286984]
[1734499404215,0.3608,104040.0,104020.0,0.05286984]
[1734499405719,0.3608,104030.0,104020.0,0.05286984]
[1734499406123,0.3608,104030.0,104020.0,0.00480484]
[1734499406318,0.6608,104030.0,104020.0,0.00480484]
[1734499406524,0.408865,104030.0,104020.0,0.00480484]
[1734499406833,0.3608,104030.0,104020.0,0.00480484]
[1734499407018,0.3608,104030.0,104010.0,0.04818489]
[1734499407329,0.33917562,104020.0,104010.0,0.55494963]
[1734499407529,0.3608,104030.0,104010.0,0.91574963]
[1734499407732,0.439063,104040.0,104020.0,0.8049004]
[1734499407923,0.439063,104040.0,104020.0,0.57967163]
[1734499408233,0.0302,104040.0,104030.0,0.408865]
[1734499408431,0.0302,104040.0,104030.0,0.38590816]
[1734499408628,0.0302,104040.0,104030.0,0.67228947]
[1734499408932,0.3302,104040.0,104030.0,0.51618412]
[1734499409332,0.408856,104050.0,104030.0,0.52531398]
[1734499409525,0.408856,104050.0,104040.0,0.51553472]
[1734499409724,0.708856,104050.0,104040.0,0.62425134]
[1734499410232,0.708856,104050.0,104040.0,0.46479618]
[1734499410537,0.01949902,104050.0,104040.0,0.33784316]
[1734499410833,0.02319902,104050.0,104040.0,0.74670316]
[1734499411038,0.02319902,104050.0,104040.0,0.92509116]
[1734499411933,0.42873608,104070.0,104050.0,0.048056]
[1734499412127,0.42873608,104070.0,104060.0,0.28691762]
[1734499413038,0.01938908,104070.0,104060.0,0.39235215]
[1734499413633,0.01938908,104070.0,104060.0,0.34430115]
[1734499413634,0.54221853,104070.0,104060.0,0.34430115]
[1734499413832,0.42873608,104070.0,104060.0,0.63122919]
[1734499414540,0.54271853,104070.0,104060.0,0.63122919]
[1734499414741,0.84271853,104070.0,104060.0,0.63122919]
[1734499414930,0.84271853,104070.0,104060.0,0.52268915]
[1734499415130,0.84271853,104070.0,104060.0,0.63127079]
[1734499415430,0.84271853,104070.0,104060.0,0.63128742]
[1734499415935,0.84271853,104070.0,104060.0,0.52268915]
[1734499417041,0.72873608,104070.0,104060.0,0.52268915]
[1734499417633,0.36509626,104070.0,104060.0,0.46540631]
[1734499417838,0.00379626,104070.0,104060.0,0.40893104]
[1734499418041,0.00379626,104070.0,104060.0,0.22651904]
[1734499418639,0.36459626,104070.0,104060.0,0.51899677]
[1734499418938,0.01,104090.0,104060.0,1.10832627]
[1734499419126,0.01,104090.0,104080.0,0.70505687]
[1734499419441,0.01,104090.0,104080.0,0.9361051]
[1734499419736,0.01,104090.0,104080.0,0.59184823]
[1734499420135,0.3896226,104090.0,104080.0,0.46979461]
[1734499420340,0.55164205,104090.0,104080.0,0.46979461]
[1734499420526,0.85164205,104090.0,104080.0,0.46979461]
[1734499420727,0.0768596,104090.0,104080.0,0.46979461]
[1734499420931,0.4376596,104090.0,104080.0,0.46979461]
[1734499421430,0.55164205,104090.0,104080.0,0.46979461]
[1734499421629,0.85164205,104090.0,104080.0,0.40983991]
[1734499421833,0.88314205,104090.0,104080.0,0.35993991]
[1734499422041,0.88314205,104090.0,104070.0,0.28678838]
[1734499422042,0.048042,104080.0,104070.0,0.28678838]
[1734499422336,0.048047,104070.0,104060.0,0.63112529]
[1734499422541,0.87778945,104070.0,104060.0,0.46174776]
[1734499422736,1.17778945,104070.0,104060.0,0.46174776]
[1734499423034,0.403007,104070.0,104060.0,8.004e-05]
[1734499423236,0.403007,104070.0,104060.0,0.28686842]
[1734499424236,0.0288226,104090.0,104060.0,0.64766842]
[1734499424449,0.0288226,104090.0,104070.0,1.03988925]
[1734499424741,0.3896226,104090.0,104080.0,0.28678838]
[1734499425037,0.3901226,104090.0,104080.0,0.28678838]
[1734499425337,0.0293226,104090.0,104080.0,0.45045775]
[1734499425937,0.0288226,104090.0,104080.0,0.45045775]
[1734499426238,0.0288226,104090.0,104080.0,0.28678838]
[1734499426438,0.0288226,104090.0,104070.0,0.72773238]
[1734499426639,0.0288226,104090.0,104080.0,0.28678838]
[1734499426845,0.0293226,104090.0,104080.0,0.28678838]
[1734499427345,0.0293226,104090.0,104070.0,0.72773238]
[1734499427648,0.4381606,104090.0,104070.0,0.48149764]
[1734499427946,0.4376606,104090.0,104070.0,0.48149764]
[1734499428555,0.4376606,104090.0,104070.0,0.52954364]
[1734499428950,0.4381606,104090.0,104070.0,0.52954364]
[1734499430634,0.3901226,104090.0,104070.0,0.48149764]
[1734499430838,0.408842,104080.0,104070.0,0.31888838]
[1734499431044,0.408842,104080.0,104070.0,0.0321]
[1734499431442,0.048042,104080.0,104070.0,0.0321]
[1734499431643,0.408842,104080.0,104060.0,0.63112529]
[1734499432241,0.3608,104070.0,104060.0,0.45181507]
[1734499432442,0.35492,104090.0,104060.0,0.81261507]
[1734499432645,0.048043,104080.0,104070.0,0.3608]
[1734499433556,0.04815253,104080.0,104070.0,0.3608]
[1734499435339,0.04815253,104080.0,104070.0,0.64758838]
[1734499435548,0.04815253,104080.0,104070.0,0.3608]
[1734499435753,0.34815253,104080.0,104070.0,0.3608]
[1734499436343,0.34815253,104080.0,104070.0,0.81405109]
[1734499436650,0.04815253,104080.0,104070.0,0.81405109]
[1734499436848,0.34815253,104080.0,104070.0,0.81405109]
[1734499438355,0.34815253,104080.0,104070.0,0.87151958]
[1734499438544,0.04815253,104080.0,104070.0,0.87151958]
[1734499439351,0.04815253,104080.0,104070.0,0.52726271]
[1734499440047,0.73455939,104090.0,104070.0,0.52726271]
[1734499440250,0.402957,104090.0,104080.0,0.99274663]
[1734499440565,0.702957,104090.0,104080.0,0.63177554]
[1734499440856,0.702957,104090.0,104080.0,0.91913735]
[1734499441250,0.70303575,104090.0,104080.0,0.21063096]
[1734499441451,0.048042,104080.0,104070.0,0.59377116]
[1734499441745,0.16202445,104080.0,104070.0,0.3608]
[1734499441945,0.54650452,104080.0,104070.0,0.3608]
[1734499442149,0.50464315,104080.0,104070.0,0.3608]
[1734499442452,0.42018236,104080.0,104070.0,0.3608]
[1734499442650,0.048047,104070.0,104060.0,8.004e-05]
[1734499442852,0.12018736,104070.0,104060.0,8.004e-05]
[1734499443052,0.42018736,104070.0,104060.0,8.004e-05]
[1734499443863,0.78098736,104070.0,104060.0,8.004e-05]
[1734499444057,0.78329958,104070.0,104060.0,8.004e-05]
[1734499446058,0.78329958,104070.0,104060.0,4e-08]
[1734499446256,0.048056,104050.0,104040.0,0.3613]
[1734499446556,0.47516858,104050.0,104040.0,0.3613]
[1734499446756,1.17788388,104050.0,104040.0,0.0005]
[1734499446954,1.17788388,104050.0,104020.0,0.3608]
[1734499446955,0.048065,104030.0,104020.0,0.3608]
[1734499447159,0.048065,104030.0,104020.0,0.36088279]
[1734499448249,0.04814771,104030.0,104020.0,0.36088279]
[1734499448863,0.04814771,104030.0,104020.0,8.279e-05]
[1734499449163,0.04814771,104030.0,104020.0,0.36088279]
[1734499449653,0.16221559,104030.0,104020.0,0.36088279]
[1734499449854,0.04814771,104030.0,104020.0,0.36088279]
[1734499450248,0.46221559,104030.0,104020.0,0.36088279]
[1734499450448,0.46221559,104030.0,104020.0,8.279e-05]
[1734499451259,0.82301559,104030.0,104020.0,8.279e-05]
[1734499453566,0.11406788,104030.0,104020.0,0.36088279]
[1734499453861,0.11406788,104030.0,104020.0,0.12056429]
[1734499453862,0.41406788,104030.0,104020.0,0.12056429]
[1734499454051,0.46213288,104030.0,104020.0,0.12056429]
[1734499454861,0.46221845,104030.0,104020.0,0.12056429]
[1734499455462,0.04807,104020.0,104010.0,0.3939]
[1734499455662,0.16213788,104020.0,104010.0,0.3939]
[1734499456664,0.16213788,104020.0,104010.0,0.3608]
[1734499456861,0.048074,104010.0,104000.0,0.46087384]
[1734499457053,0.51726188,104010.0,104000.0,0.46087384]
[1734499457360,0.81726188,104010.0,104000.0,0.46087384]
[1734499457858,0.81726188,104010.0,104000.0,0.10007384]
[1734499459157,0.048079,104000.0,103990.0,0.3608]
[1734499459362,0.16214688,104000.0,103990.0,0.3608]
[1734499460262,0.16214688,104000.0,103990.0,0.3628]
[1734499460960,0.16214688,104000.0,103990.0,0.3638]
[1734499461663,0.403234,104010.0,103990.0,0.6628]
[1734499461867,0.20516,104010.0,104000.0,0.3613]
[1734499462067,0.20516,104010.0,104000.0,0.394]
[1734499462266,0.253234,104010.0,104000.0,0.694]
[1734499463665,0.253234,104010.0,104000.0,0.394]
[1734499465665,0.27210715,104010.0,104000.0,0.394]
[1734499466259,0.38617503,104010.0,104000.0,0.3613]
[1734499466961,0.27210715,104010.0,104000.0,0.3613]
[1734499467968,0.27210715,104010.0,104000.0,0.6608]
[1734499468363,0.17403315,104010.0,104000.0,0.81399116]
[1734499470067,0.17403315,104010.0,104000.0,0.8142263]
[1734499471567,0.17403315,104010.0,104000.0,1.10089223]
[1734499474263,0.17403315,104010.0,104000.0,1.1571982]
[1734499474565,0.17403315,104010.0,104000.0,1.0037719]
[1734499474770,0.17403315,104010.0,104000.0,1.15801923]
[1734499475367,0.17403315,104010.0,104000.0,0.90339512]
[1734499475570,0.12403315,104010.0,104000.0,0.90339512]
[1734499475756,0.10516,104010.0,104000.0,0.90339512]
[1734499476366,0.10516,104010.0,104000.0,1.30502813]
[1734499476572,0.10516,104010.0,104000.0,0.90339512]
[1734499478265,0.10516,104010.0,104000.0,0.86312633]
[1734499479175,0.10516,104010.0,104000.0,0.86210651]
[1734499479974,0.17734688,104010.0,104000.0,0.81402751]
[1734499480173,0.17734688,104010.0,104000.0,1.25592931]
[1734499480174,0.10516,104010.0,104000.0,1.25592931]
[1734499480678,0.10516,104010.0,104000.0,0.8542963]
[1734499483675,0.10516,104010.0,104000.0,0.85669589]
[1734499484282,0.10516,104010.0,104000.0,0.8164271]
[1734499484585,0.12025688,104020.0,104000.0,0.85669589]
[1734499484873,0.12025688,104020.0,104010.0,0.70580664]
[1734499485081,0.12025688,104020.0,104010.0,0.86143374]
[1734499485775,0.04807,104020.0,104010.0,1.16143374]
[1734499488177,0.12025688,104020.0,104010.0,0.86143374]
[1734499488487,0.15105688,104020.0,104010.0,0.86143374]
[1734499490968,0.07887,104020.0,104010.0,0.86143374]
[1734499491170,0.15105688,104020.0,104010.0,0.86143374]
[1734499491383,0.15105688,104020.0,104010.0,0.5164271]
[1734499493685,0.15105688,104020.0,104010.0,0.8620162]
[1734499494188,0.17037752,104020.0,104010.0,0.8620162]
[1734499494379,0.17037752,104020.0,104010.0,0.5164271]
[1734499494687,0.17037752,104020.0,104010.0,0.86205117]
[1734499495384,0.17037752,104020.0,104010.0,0.55669589]
[1734499496588,0.17037752,104020.0,104010.0,0.5164271]
[1734499496889,0.17037752,104020.0,104010.0,0.55669589]
[1734499497384,0.17037752,104020.0,104010.0,0.55665016]
[1734499498284,0.17037752,104020.0,104010.0,0.51638137]
[1734499499484,0.17037752,104020.0,104010.0,0.86205301]
[1734499499884,0.17037752,104020.0,104010.0,0.51638137]
[1734499500190,0.17037752,104020.0,104010.0,0.86205412]
[1734499500387,0.17037752,104020.0,104010.0,0.55665016]
[1734499500984,0.17037752,104020.0,104010.0,0.55696435]
[1734499502581,0.17037752,104020.0,104010.0,0.90257075]
[1734499505281,0.25483831,104020.0,104010.0,0.54177075]
[1734499505482,0.25483831,104020.0,104010.0,0.28797193]
[1734499505683,0.25483831,104020.0,104010.0,0.22417193]
[1734499506793,0.72825269,104020.0,104010.0,0.22417193]
[1734499507183,0.72825269,104020.0,104010.0,0.45449412]
[1734499507384,0.72825269,104020.0,104010.0,0.45450212]
[1734499507584,0.72825269,104020.0,104010.0,0.21414656]
[1734499509793,0.048074,104010.0,104000.0,0.3608]
[1734499509994,0.12026088,104010.0,104000.0,0.3608]
[1734499510180,0.20472167,104010.0,104000.0,0.3608]
[1734499510381,0.33665269,104020.0,104000.0,0.70106879]
[1734499510582,0.22403831,104020.0,104010.0,0.3608]
[1734499510881,0.13957752,104020.0,104010.0,0.3608]
[1734499511489,0.22403831,104020.0,104010.0,0.3608]
[1734499515889,0.15185143,104020.0,104010.0,0.3608]
[1734499516198,0.22403831,104020.0,104010.0,0.3608]
[1734499516894,0.13957752,104020.0,104010.0,0.3608]
[1734499519899,0.22403831,104020.0,104010.0,0.3608]
[1734499520395,0.22403831,104020.0,104010.0,0.3914]
[1734499522096,0.13957752,104020.0,104010.0,0.3914]
[1734499522310,0.13957752,104020.0,104010.0,0.73166879]
[1734499522311,0.06739064,104020.0,104010.0,0.73166879]
[1734499522500,0.13957752,104020.0,104010.0,0.73166879]
[1734499523102,0.13957752,104020.0,104010.0,0.6914]
[1734499523301,0.01932064,104020.0,104010.0,0.6914]
[1734499523497,0.01932064,104020.0,104010.0,1.09303301]
[1734499523697,0.01932064,104020.0,104010.0,1.1333018]
[1734499524795,0.09150752,104020.0,104010.0,1.1333018]
[1734499525297,0.01932064,104020.0,104010.0,1.1333018]
[1734499525807,0.01932064,104020.0,104010.0,1.1363056]
[1734499525995,0.01932064,104020.0,104010.0,1.1333018]
[1734499526196,0.01932064,104020.0,104010.0,1.13630559]
[1734499526400,0.01932064,104020.0,104010.0,0.69440379]
[1734499526996,0.13957752,104020.0,104010.0,0.69440379]
[1734499527500,0.35528557,104030.0,104010.0,0.81466367]
[1734499527806,0.35660242,104050.0,104020.0,0.92508989]
[1734499528110,0.35660242,104050.0,104040.0,1.06675748]
[1734499528111,0.4292893,104050.0,104040.0,1.06675748]
[1734499528291,0.4292893,104050.0,104040.0,1.06976127]
[1734499528690,0.44838971,104050.0,104040.0,1.06675748]
[1734499528895,0.49644571,104050.0,104040.0,1.36675748]
[1734499529106,0.49594571,104050.0,104040.0,1.36675748]
[1734499529501,0.49594571,104050.0,104040.0,1.0216]
[1734499530008,0.49500329,104050.0,104040.0,1.0774]
[1734499530594,0.49500329,104050.0,104040.0,1.42255748]
[1734499531000,0.49450329,104050.0,104040.0,1.42255748]
[1734499531609,0.49450329,104050.0,104040.0,1.0774]
[1734499532210,0.49500329,104050.0,104040.0,1.0774]
[1734499532999,0.49450329,104050.0,104040.0,1.0774]
[1734499534012,0.49500329,104050.0,104040.0,0.7774]
[1734499534304,0.49500329,104050.0,104040.0,0.7216]
[1734499535107,0.49450329,104050.0,104040.0,0.7216]
[1734499535307,0.49450329,104050.0,104030.0,0.70595748]
[1734499535509,0.12024688,104040.0,104030.0,0.3608]
[1734499535711,0.048065,104030.0,104020.0,0.4148]
[1734499535897,0.048065,104030.0,104020.0,1.0756]
[1734499537113,0.12025188,104030.0,104020.0,1.0756]
[1734499537308,0.048065,104030.0,104020.0,1.0756]
[1734499537708,0.048065,104030.0,104020.0,1.42075748]
[1734499538309,0.048061,104040.0,104020.0,1.49294436]
[1734499538614,0.048061,104040.0,104030.0,0.3608]
[1734499539215,0.42231741,104050.0,104030.0,0.73298688]
[1734499539406,0.42231741,104050.0,104040.0,0.3608]
[1734499539810,0.42231741,104050.0,104040.0,0.6608]
[1734499540003,0.37426041,104050.0,104040.0,0.6608]
[1734499540203,0.37426041,104050.0,104040.0,1.07814436]
[1734499540414,0.37426041,104050.0,104040.0,1.00595748]
[1734499544413,0.35527214,104050.0,104040.0,1.00595748]
[1734499544621,0.35527214,104050.0,104040.0,1.07823393]
[1734499547808,0.35527214,104050.0,104040.0,1.00604705]
[1734499548510,0.35527214,104050.0,104040.0,1.07823393]
[1734499548713,0.35527214,104050.0,104040.0,1.00604705]
[1734499553617,0.35527214,104050.0,104040.0,0.66088957]
[1734499557124,0.35527214,104050.0,104040.0,1.06252258]
[1734499558522,0.35527214,104050.0,104040.0,0.66088957]
[1734499560740,0.47551502,104050.0,104030.0,0.76243301]
[1734499561030,0.048065,104030.0,104020.0,0.36144]
[1734499561231,0.20650951,104030.0,104020.0,0.3608]
[1734499562025,0.12025188,104030.0,104020.0,0.3608]
[1734499564040,0.17825188,104030.0,104020.0,0.3608]
[1734499573139,0.19734163,104030.0,104020.0,0.3608]
[1734499576337,0.14927663,104030.0,104020.0,0.3608]
[1734499576649,0.19734163,104030.0,104020.0,0.3608]
[1734499578041,0.04807,104020.0,104010.0,0.36234187]
[1734499578231,0.12025688,104020.0,104010.0,0.36234187]
[1734499578942,0.12025688,104020.0,104010.0,9.976e-05]
[1734499587161,0.48105688,104020.0,104010.0,9.976e-05]
[1734499587467,0.12025688,104020.0,104010.0,9.976e-05]
[1734499588170,0.48105688,104020.0,104010.0,9.976e-05]
[1734499588561,0.12025688,104020.0,104010.0,9.976e-05]
[1734499589363,0.12025688,104020.0,104010.0,0.04036855]
[1734499589579,0.048074,104010.0,103990.0,0.76293301]
[1734499589759,0.048074,104010.0,103990.0,0.70676294]
[1734499589760,0.47542588,104000.0,103990.0,0.70676294]
[1734499589965,0.47542588,104000.0,103990.0,0.3613]
[1734499590670,0.56187527,104000.0,103990.0,0.3613]
[1734499591065,0.56187527,104000.0,103990.0,0.3608]
[1734499592767,0.47550942,104000.0,103990.0,0.3608]
[1734499593572,0.56187527,104000.0,103990.0,0.3608]
[1734499594862,0.048083,103990.0,103980.0,0.5282]
[1734499595068,0.12026988,103990.0,103980.0,0.8277]
[1734499596075,0.12026988,103990.0,103980.0,0.8282]
[1734499596668,0.20663573,103990.0,103980.0,0.8282]
[1734499597175,0.20663573,103990.0,103980.0,0.8277]
[1734499598170,0.20663573,103990.0,103980.0,0.8282]
[1734499598372,0.08644939,104000.0,103980.0,1.189]
[1734499598579,0.08644939,104000.0,103990.0,0.3608]
[1734499598580,0.40340254,104000.0,103990.0,0.3608]
[1734499598971,0.40340254,104000.0,103990.0,0.6608]
[1734499599371,0.47558942,104000.0,103990.0,0.3608]
[1734499599576,0.56195527,104000.0,103990.0,0.3608]
[1734499600177,0.53452447,104000.0,103990.0,0.3608]
[1734499600380,0.53452447,104000.0,103980.0,0.5277]
[1734499600571,0.09283908,103990.0,103980.0,0.8277]
[1734499603077,0.09283908,103990.0,103980.0,0.86976734]
[1734499603275,0.09283908,103990.0,103980.0,0.6608]
[1734499603677,0.09283908,103990.0,103980.0,0.70286734]
[1734499603975,0.09283908,103990.0,103980.0,0.6608]
[1734499604166,0.09283908,103990.0,103980.0,0.3]
[1734499604366,0.09283908,103990.0,103980.0,0.34206734]
[1734499604567,0.22396101,103990.0,103970.0,0.37141806]
[1734499604872,0.58476601,103980.0,103960.0,0.0734]
[1734499605077,0.45364908,103970.0,103960.0,0.3734]
[1734499605375,0.54001493,103970.0,103960.0,0.0734]
[1734499605581,0.49192193,103970.0,103950.0,0.0715]
[1734499605780,0.44809308,103960.0,103950.0,0.3715]
[1734499606076,0.44809308,103960.0,103950.0,0.0715]
[1734499606292,0.048102,103950.0,103940.0,0.43412047]
[1734499606585,0.09285808,103950.0,103940.0,0.73412047]
[1734499606768,0.09285808,103950.0,103940.0,0.37332047]
[1734499607979,0.09297482,103950.0,103940.0,0.30012047]
[1734499608189,0.09297482,103950.0,103940.0,0.00012047]
[1734499608385,0.12046687,103950.0,103940.0,0.00012047]
[1734499609080,0.12046687,103950.0,103940.0,0.00062047]
[1734499609380,0.04817856,103950.0,103940.0,0.00062047]
[1734499609582,7.656e-05,103950.0,103940.0,0.66142047]
[1734499609781,0.07236487,103950.0,103940.0,0.73152047]
[1734499610486,0.12046687,103950.0,103940.0,0.73152047]
[1734499610886,0.12046687,103950.0,103940.0,0.30062047]
[1734499612077,0.12046687,103950.0,103940.0,0.66142047]
[1734499612283,0.12046687,103950.0,103940.0,0.30062047]
[1734499612680,0.12046687,103950.0,103940.0,0.66142047]
[1734499612980,0.12046687,103950.0,103940.0,0.73152047]
[1734499613985,0.12046687,103950.0,103940.0,0.37072047]
[1734499614892,0.12046687,103950.0,103940.0,0.73152047]
[1734499615696,0.12046687,103950.0,103940.0,0.37072047]
[1734499617695,0.13957999,103950.0,103940.0,0.37072047]
[1734499619096,0.13957999,103950.0,103940.0,0.37022047]
[1734499622093,0.50037999,103950.0,103940.0,0.37022047]
[1734499622602,0.50037999,103950.0,103940.0,0.00012047]
[1734499623896,0.048111,103940.0,103930.0,0.1120862]
[1734499624085,0.48119931,103940.0,103930.0,0.0705]
[1734499624293,0.48119931,103940.0,103930.0,0.0005]
[1734499624790,0.55109931,103940.0,103930.0,0.0005]
[1734499625096,0.55109931,103940.0,103910.0,0.4797949]
[1734499625097,0.048121,103920.0,103910.0,0.4797949]
[1734499625285,0.403521,103920.0,103910.0,0.4189949]
[1734499625490,0.403521,103920.0,103910.0,0.3769087]
[1734499627292,0.83660931,103920.0,103910.0,0.0001087]
[1734499628300,0.47580931,103920.0,103910.0,0.0001087]
[1734499628495,0.83660931,103920.0,103910.0,0.0001087]